bitfinex/quotes_BTCUSD_20220405
["timestamp","ask_amount","ask_price","bid_price","bid_amount"]
[1649183951265,0.26537284,45948.0,45940.0,0.001]
[1649183951361,0.0874675,45948.0,45941.0,0.318426]
[1649183951465,0.0874675,45948.0,45944.0,0.00051437]
[1649183951562,0.27237781,45945.0,45944.0,0.00051437]
[1649183951664,0.0874675,45948.0,45944.0,0.00051437]
[1649183951915,0.1418895,45948.0,45944.0,0.00051437]
[1649183952013,0.1918895,45948.0,45944.0,0.00051437]
[1649183952416,0.1918895,45948.0,45940.0,0.001]
[1649183952621,0.1918895,45948.0,45944.0,0.00051437]
[1649183953218,0.054427,45947.0,45944.0,0.00051437]
[1649183953666,0.054427,45947.0,45940.0,0.001]
[1649183953766,0.24744311,45946.0,45940.0,0.001]
[1649183953865,0.24744311,45946.0,45943.0,0.00051437]
[1649183953965,0.29744311,45946.0,45943.0,0.00051437]
[1649183954812,0.29744311,45946.0,45940.0,0.001]
[1649183954914,0.05,45946.0,45940.0,0.001]
[1649183955012,0.05,45946.0,45942.0,0.00049526]
[1649183955114,0.35,45947.0,45942.0,0.00049526]
[1649183955215,0.4,45947.0,45942.0,0.00049526]
[1649183955367,0.35,45947.0,45942.0,0.00049526]
[1649183955965,0.05,45947.0,45942.0,0.00042668]
[1649183956064,0.05,45947.0,45940.0,0.001]
[1649183956264,0.05,45947.0,45940.0,0.00049526]
[1649183956465,0.30432619,45946.0,45940.0,0.00049526]
[1649183956869,0.05,45947.0,45940.0,0.00049526]
[1649183957168,0.0830455,45948.0,45940.0,0.00049526]
[1649183957822,0.34858721,45948.0,45940.0,0.00049526]
[1649183958023,0.34858721,45948.0,45941.0,0.318426]
[1649183958270,0.34858721,45948.0,45940.0,0.00049526]
[1649183958362,0.0830455,45948.0,45941.0,0.318426]
[1649183958561,0.0330455,45948.0,45941.0,0.318426]
[1649183958910,0.0830455,45948.0,45941.0,0.318426]
[1649183959061,0.0330455,45948.0,45940.0,0.00075841]
[1649183959464,0.0830455,45948.0,45940.0,0.00075841]
[1649183959661,0.0830455,45948.0,45940.0,0.00049526]
[1649183959862,0.0830455,45948.0,45940.0,0.00099221]
[1649183960011,0.0830455,45948.0,45941.0,0.318426]
[1649183960111,0.0830455,45948.0,45940.0,0.00099221]
[1649183960317,0.0830455,45948.0,45941.0,0.318426]
[1649183960772,0.054419,45947.0,45940.0,0.00099221]
[1649183960866,0.054419,45947.0,45941.0,0.318426]
[1649183961216,0.054419,45947.0,45940.0,0.00099221]
[1649183961317,0.054419,45947.0,45941.0,0.318426]
[1649183961516,0.054419,45947.0,45940.0,0.00099221]
[1649183961861,0.054419,45947.0,45941.0,0.318427]
[1649183961963,0.054419,45947.0,45941.0,0.318426]
[1649183962160,0.054419,45947.0,45940.0,0.00049526]
[1649183962260,0.054419,45947.0,45940.0,0.00099173]
[1649183962363,0.0830455,45948.0,45940.0,0.00099173]
[1649183962511,0.0830455,45948.0,45939.0,0.25281543]
[1649183962512,0.0830455,45948.0,45939.0,0.22601952]
[1649183964621,0.0002345,45946.0,45939.0,0.22601952]
[1649183964723,0.0002345,45946.0,45940.0,0.318433]
[1649183965617,0.0330455,45948.0,45940.0,0.318433]
[1649183965720,0.0830455,45948.0,45939.0,0.22601952]
[1649183965818,0.0330455,45948.0,45940.0,0.318433]
[1649183965922,0.00053328,45945.0,45940.0,0.318433]
[1649183966919,0.0830455,45948.0,45940.0,0.318433]
[1649183967121,0.00053329,45945.0,45940.0,0.318433]
[1649183968023,0.0830455,45948.0,45940.0,0.318433]
[1649183968123,0.0830455,45948.0,45939.0,0.22601952]
[1649183968223,0.0830455,45948.0,45940.0,0.318433]
[1649183968322,0.00053329,45945.0,45939.0,0.22601952]
[1649183968425,0.00053329,45945.0,45940.0,0.318433]
[1649183969227,0.0830455,45948.0,45940.0,0.318433]
[1649183969560,0.00053329,45945.0,45940.0,0.318433]
[1649183970413,0.0330455,45948.0,45940.0,0.318433]
[1649183970761,0.00051434,45945.0,45940.0,0.318433]
[1649183971667,0.26660372,45946.0,45931.0,0.17784928]
[1649183971668,0.26660372,45946.0,45932.0,0.42784928]
[1649183971765,0.37546772,45946.0,45932.0,0.25]
[1649183971865,0.42546772,45946.0,45938.0,0.00051442]
[1649183971969,0.00051434,45945.0,45938.0,0.00051442]
[1649183972071,0.17838381,45945.0,45938.0,0.00051442]
[1649183972166,0.377972,45944.0,45938.0,0.00051442]
[1649183972271,0.3,45943.0,45938.0,0.00051442]
[1649183972367,0.01102,45939.0,45938.0,0.00051442]
[1649183972467,0.08428,45939.0,45938.0,0.00051442]
[1649183972566,0.53260908,45939.0,45938.0,0.00051442]
[1649183972671,0.58260908,45939.0,45938.0,0.00051442]
[1649183972870,0.05444316,45936.0,45930.0,0.002]
[1649183972971,0.054443,45934.0,45930.0,0.002]
[1649183974316,0.054443,45934.0,45930.0,0.00251318]
[1649183974515,1.5520816,45934.0,45930.0,0.00251318]
[1649183975115,0.3,45933.0,45930.0,0.00251318]
[1649183975215,0.30027052,45933.0,45930.0,0.00251318]
[1649183975317,0.30027052,45933.0,45930.0,0.002]
[1649183975519,0.30027052,45933.0,45930.0,0.00251318]
[1649183975716,0.23182923,45931.0,45930.0,0.00251318]
[1649183975867,0.03305932,45931.0,45930.0,0.00251318]
[1649183976470,0.03305932,45931.0,45930.0,0.002]
[1649183977559,0.26140109,45931.0,45930.0,0.002]
[1649183977707,0.03305932,45931.0,45930.0,0.002]
[1649183979411,0.33305932,45931.0,45930.0,0.002]
[1649183979911,0.33295295,45931.0,45930.0,0.002]
[1649183982066,0.38295295,45931.0,45930.0,0.012]
[1649183983017,0.3848275,45931.0,45930.0,0.012]
[1649183983469,0.7082195,45931.0,45930.0,0.012]
[1649183983571,0.7191095,45931.0,45930.0,0.00968984]
[1649183983727,0.9128095,45931.0,45930.0,0.00968984]
[1649183983822,0.9346595,45931.0,45930.0,0.00968984]
[1649183984167,1.973392,45930.0,45929.0,0.002]
[1649183984270,1.984282,45930.0,45929.0,0.002]
[1649183984414,2.127982,45930.0,45928.0,0.00150184]
[1649183984510,0.634282,45929.0,45928.0,0.00150184]
[1649183984613,0.715232,45929.0,45928.0,0.00150184]
[1649183984709,0.815232,45929.0,45928.0,0.00150184]
[1649183984809,0.858932,45929.0,45928.0,0.00150184]
[1649183984910,0.858932,45929.0,45928.0,0.001]
[1649183985061,0.96627842,45929.0,45928.0,0.001]
[1649183985261,1.16627842,45929.0,45920.0,0.001]
[1649183985361,0.054471,45927.0,45920.0,0.001]
[1649183985460,0.01102397,45922.0,45920.0,0.001]
[1649183985562,0.34530597,45921.0,45920.0,0.001]
[1649183985662,0.64023406,45921.0,45920.0,0.001]
[1649183985761,0.69023406,45921.0,45920.0,0.001]
[1649183985866,1.04023406,45921.0,45920.0,0.001]
[1649183985973,1.14023406,45921.0,45920.0,0.001]
[1649183986168,0.323392,45919.0,45904.0,0.001]
[1649183986330,1.21128788,45919.0,45918.0,0.0001]
[1649183986417,1.31587788,45919.0,45918.0,0.0001]
[1649183986517,1.65033309,45919.0,45918.0,0.0001]
[1649183986616,1.35,45918.0,45904.0,0.001]
[1649183986727,0.64530909,45917.0,45906.0,0.24182158]
[1649183986818,0.74530909,45917.0,45906.0,0.24182158]
[1649183987167,0.74530909,45917.0,45904.0,0.001]
[1649183987168,0.74530909,45917.0,45916.0,0.0001]
[1649183987270,0.84530909,45917.0,45916.0,0.0001]
[1649183988711,2.0097656,45917.0,45916.0,0.0001]
[1649183989313,2.01201059,45917.0,45916.0,0.0001]
[1649183990267,2.05571059,45917.0,45916.0,0.0001]
[1649183991471,2.0534656,45917.0,45916.0,0.0001]
[1649183992323,0.323392,45915.0,45914.0,0.001]
[1649183992419,0.83442149,45915.0,45907.0,0.001]
[1649183992522,0.83442149,45915.0,45912.0,0.001]
[1649183992523,1.95,45914.0,45912.0,0.001]
[1649183992622,0.623392,45913.0,45912.0,0.001]
[1649183992724,0.64531149,45913.0,45912.0,0.001]
[1649183992820,0.83901149,45913.0,45912.0,0.001]
[1649183992923,0.541372,45911.0,45904.0,0.001]
[1649183993020,0.31089,45910.0,45904.0,0.001]
[1649183993122,0.61970929,45905.0,45904.0,0.001]
[1649183993219,0.63442101,45905.0,45904.0,0.001]
[1649183993319,0.38901101,45905.0,45904.0,0.001]
[1649183993469,0.06561901,45905.0,45904.0,0.001]
[1649183993577,0.01156565,45905.0,45904.0,0.001]
[1649183993669,0.00067565,45905.0,45904.0,0.001]
[1649183993976,0.05459,45911.0,45907.0,0.20019268]
[1649183994269,0.323392,45910.0,45907.0,0.47365023]
[1649183994371,0.323392,45909.0,45907.0,0.47365023]
[1649183994472,0.04396329,45912.0,45907.0,0.47365023]
[1649183994571,0.323392,45911.0,45907.0,0.47365023]
[1649183994673,0.01089,45910.0,45907.0,0.47365023]
[1649183994871,0.01089,45911.0,45907.0,0.47365023]
[1649183994970,0.323392,45910.0,45907.0,0.47365023]
[1649183995072,0.01089,45911.0,45907.0,0.47365023]
[1649183995666,0.323392,45910.0,45907.0,0.47365023]
[1649183995865,0.01089,45911.0,45907.0,0.47365023]
[1649183995967,0.01089,45911.0,45907.0,0.47415493]
[1649183996266,0.323392,45910.0,45907.0,0.47415493]
[1649183996367,0.01089,45911.0,45907.0,0.47415493]
[1649183996718,0.323392,45910.0,45907.0,0.47415493]
[1649183996970,0.323392,45910.0,45907.0,0.47365023]
[1649183997071,0.01089,45911.0,45907.0,0.47365023]
[1649183997169,0.323392,45910.0,45907.0,0.47365023]
[1649183997270,0.01089,45911.0,45907.0,0.47365023]
[1649183997372,0.323392,45910.0,45907.0,0.47365023]
[1649183997472,0.33839213,45912.0,45907.0,0.47365023]
[1649183997571,0.323392,45911.0,45907.0,0.47365023]
[1649183998020,0.33839213,45912.0,45907.0,0.47365023]
[1649183998273,0.323392,45911.0,45907.0,0.47365023]
[1649183998371,0.323392,45911.0,45907.0,0.47415493]
[1649183998974,0.32750213,45912.0,45907.0,0.47415493]
[1649183999076,0.03307329,45912.0,45907.0,0.47415493]
[1649183999381,0.03307329,45912.0,45907.0,0.47365023]
[1649184000426,0.03307329,45912.0,45907.0,0.20019268]
[1649184000629,0.323392,45911.0,45907.0,0.20019268]
[1649184000830,0.323392,45911.0,45907.0,0.20065424]
[1649184000978,0.33307329,45912.0,45907.0,0.20065424]
[1649184001181,0.323392,45911.0,45907.0,0.20065424]
[1649184001280,0.03307329,45912.0,45907.0,0.20065424]
[1649184001480,0.08754052,45912.0,45907.0,0.20065424]
[1649184001582,0.054468,45911.0,45907.0,0.20065424]
[1649184001780,0.054468,45911.0,45907.0,0.20019268]
[1649184001983,0.163407,45911.0,45907.0,0.20065424]
[1649184002186,0.323392,45910.0,45907.0,0.20065424]
[1649184002284,0.3,45909.0,45907.0,0.20065424]
[1649184002484,0.323392,45908.0,45907.0,0.20065424]
[1649184002985,0.323392,45908.0,45907.0,0.20019268]
[1649184003813,0.55430519,45908.0,45907.0,0.20019268]
[1649184006116,0.55735773,45908.0,45907.0,0.20019268]
[1649184007215,0.85735773,45908.0,45907.0,0.20019268]
[1649184007516,0.85735773,45908.0,45905.0,0.00025934]
[1649184007617,0.432361,45906.0,45905.0,0.00025934]
[1649184007717,0.74339037,45906.0,45905.0,0.00025934]
[1649184007819,0.74339037,45906.0,45904.0,0.001]
[1649184007965,0.623392,45905.0,45902.0,0.001]
[1649184008063,0.65,45903.0,45901.0,0.013]
[1649184008166,0.323392,45902.0,45901.0,0.013]
[1649184009566,0.323392,45902.0,45901.0,0.008]
[1649184009819,0.78847806,45902.0,45901.0,0.008]
[1649184010827,0.79152828,45902.0,45901.0,0.008]
[1649184011024,0.90014982,45902.0,45901.0,0.008]
[1649184011122,1.00014982,45902.0,45901.0,0.008]
[1649184011574,1.45,45901.0,45898.0,0.001]
[1649184011673,0.38877865,45900.0,45899.0,0.00052391]
[1649184011775,0.80880219,45900.0,45899.0,0.00052391]
[1649184012675,0.80880219,45900.0,45898.0,0.001]
[1649184012776,0.31103154,45899.0,45898.0,0.001]
[1649184012925,0.63442305,45899.0,45898.0,0.001]
[1649184016029,0.6374721,45899.0,45898.0,0.001]
[1649184019996,0.7374721,45899.0,45898.0,0.001]
[1649184020197,0.73721274,45899.0,45898.0,0.001]
[1649184021305,0.4374721,45899.0,45898.0,0.001]
[1649184023064,0.3374721,45899.0,45898.0,0.001]
[1649184023512,0.32892631,45899.0,45898.0,0.001]
[1649184023915,1.33896529,45900.0,45899.0,0.14636774]
[1649184024015,1.66245129,45900.0,45899.0,0.14636774]
[1649184024115,1.67348174,45900.0,45899.0,0.14636774]
[1649184025117,1.67348174,45900.0,45899.0,0.14136774]
[1649184025319,1.66245129,45900.0,45899.0,0.14136774]
[1649184025520,1.33896529,45900.0,45899.0,0.14136774]
[1649184025924,1.66245129,45900.0,45899.0,0.14136774]
[1649184026024,1.33896529,45900.0,45899.0,0.14136774]
[1649184026872,1.57665415,45900.0,45899.0,0.14136774]
[1649184027074,1.62665415,45900.0,45899.0,0.14136774]
[1649184027175,1.67665415,45900.0,45899.0,0.14136774]
[1649184027373,2.00014015,45900.0,45899.0,0.14136774]
[1649184028274,2.00014015,45900.0,45899.0,0.14029172]
[1649184029474,1.67665415,45900.0,45899.0,0.14029172]
[1649184029677,1.43896529,45900.0,45899.0,0.14029172]
[1649184030678,0.1,45900.0,45899.0,0.14029172]
[1649184030777,0.05,45900.0,45899.0,0.14029172]
[1649184030976,0.19688542,45909.0,45899.0,0.14029172]
[1649184031078,0.06089,45910.0,45900.0,0.3]
[1649184031176,0.01089,45910.0,45900.0,0.3]
[1649184031284,0.15,45911.0,45900.0,0.3]
[1649184031383,0.15,45911.0,45900.0,0.295]
[1649184032028,0.15,45911.0,45903.0,0.00045662]
[1649184032182,0.58606485,45910.0,45903.0,0.00045662]
[1649184032478,0.26257885,45910.0,45903.0,0.00045662]
[1649184032578,0.323486,45909.0,45903.0,0.00045662]
[1649184032681,0.27797329,45912.0,45903.0,0.27696293]
[1649184032781,0.27797329,45912.0,45904.0,0.3]
[1649184033124,0.22797329,45912.0,45904.0,0.3]
[1649184033221,0.22797329,45912.0,45904.0,0.62428278]
[1649184033320,0.22797329,45912.0,45906.0,0.00045661]
[1649184033423,0.03307329,45912.0,45906.0,0.00045661]
[1649184033721,0.03307329,45912.0,45910.0,0.28997818]
[1649184033924,0.03307329,45912.0,45906.0,0.00045661]
[1649184034272,0.03307329,45912.0,45904.0,0.3]
[1649184034375,0.03307329,45912.0,45903.0,0.3]
[1649184034376,0.323486,45911.0,45903.0,0.3]
[1649184034474,0.323486,45911.0,45907.0,0.00045594]
[1649184034574,0.377956,45911.0,45907.0,0.00045594]
[1649184035472,0.377956,45911.0,45900.0,0.799175]
[1649184035574,0.377956,45911.0,45900.0,0.49735097]
[1649184035675,0.2966877,45907.0,45900.0,0.49735097]
[1649184035779,0.054477,45905.0,45900.0,0.26271054]
[1649184036529,0.054477,45905.0,45900.0,0.01271054]
[1649184036627,0.323486,45904.0,45900.0,0.01271054]
[1649184036729,0.323486,45904.0,45900.0,0.01089]
[1649184036730,0.10896861,45904.0,45900.0,0.01089]
[1649184036888,0.323486,45901.0,45900.0,0.01089]
[1649184036985,0.054484,45903.0,45900.0,0.01134577]
[1649184037086,0.323486,45902.0,45900.0,0.01134577]
[1649184037984,0.323486,45902.0,45900.0,0.01089]
[1649184038592,0.163453,45903.0,45900.0,0.01089]
[1649184038685,0.21793661,45904.0,45900.0,0.01089]
[1649184038686,0.054484,45905.0,45900.0,0.26089]
[1649184038816,0.054468,45910.0,45900.0,0.26089]
[1649184038986,0.56165743,45911.0,45900.0,0.01089]
[1649184039086,0.26165743,45911.0,45900.0,0.26089]
[1649184039185,0.26165743,45911.0,45900.0,0.25]
[1649184039286,0.03307329,45912.0,45900.0,0.25]
[1649184039436,0.03307329,45912.0,45903.0,0.0004564]
[1649184040136,0.03307329,45912.0,45904.0,0.25869871]
[1649184040612,0.03307329,45912.0,45906.0,0.0004563]
[1649184041412,0.03307329,45912.0,45911.0,0.26897413]
[1649184042014,0.03307329,45912.0,45907.0,0.00045629]
[1649184042513,0.323486,45911.0,45907.0,0.00045629]
[1649184042617,0.03307329,45912.0,45907.0,0.00045629]
[1649184042814,0.03307329,45912.0,45904.0,0.25]
[1649184042919,0.323486,45911.0,45904.0,0.25]
[1649184043066,0.323486,45911.0,45907.0,0.00045623]
[1649184043267,0.249614,45910.0,45907.0,0.00045623]
[1649184043414,0.323486,45909.0,45907.0,0.00045623]
[1649184044015,0.323486,45909.0,45904.0,0.25]
[1649184044116,0.108944,45910.0,45904.0,0.25]
[1649184044216,0.108944,45910.0,45906.0,0.00045623]
[1649184044657,0.323486,45909.0,45906.0,0.00045623]
[1649184044756,0.108944,45910.0,45906.0,0.00045623]
[1649184044862,0.323486,45909.0,45906.0,0.00045623]
[1649184044956,0.108944,45910.0,45906.0,0.00045623]
[1649184045307,0.108944,45910.0,45904.0,0.25]
[1649184045407,0.323486,45909.0,45906.0,0.00045623]
[1649184045509,0.108944,45910.0,45906.0,0.00045623]
[1649184046059,0.323486,45909.0,45906.0,0.00045623]
[1649184046462,0.108944,45910.0,45903.0,0.01089]
[1649184046661,0.323486,45909.0,45905.0,0.00045622]
[1649184047664,0.108944,45910.0,45901.0,0.01089]
[1649184047764,0.10895329,45906.0,45900.0,0.26089]
[1649184047864,0.21790629,45906.0,45905.0,0.00045622]
[1649184047965,0.51013856,45906.0,45905.0,0.00045622]
[1649184048730,0.83362456,45906.0,45905.0,0.00045622]
[1649184048831,0.054477,45905.0,45900.0,0.26089]
[1649184048929,0.108953,45905.0,45900.0,0.26089]
[1649184049030,0.108953,45905.0,45903.0,0.00045625]
[1649184049230,0.323486,45904.0,45903.0,0.00045625]
[1649184049340,0.432454,45904.0,45903.0,0.00045625]
[1649184049430,0.377968,45904.0,45903.0,0.00045625]
[1649184050031,0.377968,45904.0,45900.0,0.01089]
[1649184050130,0.26520172,45904.0,45900.0,0.01089]
[1649184050230,0.26520172,45904.0,45901.0,0.00045627]
[1649184050332,0.323486,45903.0,45901.0,0.00045627]
[1649184050481,0.26520172,45904.0,45901.0,0.00045627]
[1649184050583,0.323486,45903.0,45901.0,0.00045627]
[1649184050881,0.26520172,45904.0,45901.0,0.00045627]
[1649184050981,0.323486,45903.0,45901.0,0.00045627]
[1649184051083,0.26520172,45904.0,45901.0,0.00045627]
[1649184051185,0.323486,45903.0,45900.0,0.01089]
[1649184051297,0.26520172,45904.0,45900.0,0.01089]
[1649184051383,0.26520172,45904.0,45900.0,0.01134628]
[1649184052018,0.108953,45905.0,45900.0,0.01134628]
[1649184052115,0.108953,45905.0,45900.0,0.00045628]
[1649184052469,0.108953,45905.0,45899.0,0.15118172]
[1649184052666,0.108953,45905.0,45900.0,0.00045628]
[1649184052767,0.05,45904.0,45900.0,0.00045628]
[1649184053071,0.323486,45903.0,45900.0,0.00045628]
[1649184053468,0.20183813,45904.0,45900.0,0.00045628]
[1649184053670,0.20183813,45904.0,45899.0,0.14029172]
[1649184053772,0.20183813,45904.0,45899.0,0.140748]
[1649184053971,0.98782359,45906.0,45905.0,0.1644214]
[1649184054276,0.8243943,45906.0,45905.0,0.1644214]
[1649184054772,0.323486,45906.0,45905.0,0.1644214]
[1649184055172,0.373486,45906.0,45905.0,0.1644214]
[1649184057118,0.05,45906.0,45905.0,0.1644214]
[1649184057218,0.01089,45911.0,45905.0,0.1644214]
[1649184057418,0.03307329,45912.0,45905.0,0.1644214]
[1649184058166,0.18185828,45909.0,45905.0,0.1644214]
[1649184058369,0.23185828,45909.0,45905.0,0.1644214]
[1649184058567,0.05,45909.0,45905.0,0.1644214]
[1649184058671,0.05,45909.0,45905.0,0.16489514]
[1649184058816,0.28366637,45911.0,45905.0,0.16489514]
[1649184058817,0.33366637,45911.0,45905.0,0.16489514]
[1649184059117,0.05,45911.0,45905.0,0.16489514]
[1649184059388,0.03307329,45912.0,45905.0,0.16489514]
[1649184059677,0.03307329,45912.0,45905.0,0.1644214]
[1649184059877,0.03307329,45912.0,45906.0,0.00047137]
[1649184060179,0.37696092,45915.0,45908.0,0.31490883]
[1649184060379,0.2344,45915.0,45908.0,0.31490883]
[1649184060978,0.05,45915.0,45908.0,0.31490883]
[1649184061080,0.05,45915.0,45909.0,0.00047135]
[1649184061179,0.2273894,45917.0,45909.0,0.00047135]
[1649184061379,0.2273894,45917.0,45911.0,0.28875734]
[1649184061581,0.2273894,45917.0,45909.0,0.00047135]
[1649184062081,0.2273894,45917.0,45908.0,0.31490883]
[1649184062182,0.2773894,45917.0,45908.0,0.31490883]
[1649184062284,0.2773894,45917.0,45911.0,0.00048131]
[1649184062731,0.11089,45917.0,45911.0,0.00048131]
[1649184062935,0.06089,45917.0,45911.0,0.25605757]
[1649184063102,0.01089,45917.0,45911.0,0.25605757]
[1649184063257,0.01089,45917.0,45911.0,0.25557626]
[1649184063458,0.01089,45917.0,45912.0,0.00048203]
[1649184064109,0.323486,45916.0,45912.0,0.00048203]
[1649184064211,0.373486,45916.0,45912.0,0.00048203]
[1649184064312,0.423486,45916.0,45912.0,0.00048203]
[1649184064409,0.323486,45915.0,45908.0,0.31490883]
[1649184064511,0.1,45916.0,45908.0,0.31490883]
[1649184064610,0.1,45916.0,45912.0,0.00048203]
[1649184064713,0.25343546,45917.0,45912.0,0.00048203]
[1649184064816,0.11089,45917.0,45912.0,0.00048203]
[1649184064914,0.05,45915.0,45912.0,0.00048203]
[1649184065013,0.06089,45917.0,45912.0,0.00048203]
[1649184065113,0.06089,45917.0,45913.0,0.29652355]
[1649184065221,0.00061012,45914.0,45913.0,0.29652355]
[1649184065317,0.00061012,45914.0,45912.0,0.00048203]
[1649184065421,0.34662905,45918.0,45912.0,0.00048203]
[1649184065666,0.34662905,45918.0,45908.0,0.65773657]
[1649184065667,0.1,45918.0,45908.0,0.65773657]
[1649184065766,0.01089,45921.0,45908.0,0.65773657]
[1649184065917,0.01089,45921.0,45913.0,0.0004891]
[1649184066067,0.00061012,45916.0,45913.0,0.0004891]
[1649184066267,0.00061012,45914.0,45913.0,0.0004891]
[1649184066565,0.00061012,45914.0,45913.0,0.27310108]
[1649184066920,0.00061012,45914.0,45912.0,0.25]
[1649184067017,0.58407993,45921.0,45911.0,0.00048872]
[1649184067116,0.323486,45920.0,45911.0,0.00048872]
[1649184067317,0.46603146,45920.0,45911.0,0.00048872]
[1649184067517,0.14254546,45920.0,45911.0,0.00048872]
[1649184067872,0.58407993,45921.0,45911.0,0.00048872]
[1649184067969,0.054458,45914.0,45911.0,0.00048872]
[1649184068070,0.054469,45913.0,45910.0,0.21712949]
[1649184068168,0.054469,45913.0,45908.0,0.25]
[1649184068367,0.104469,45913.0,45908.0,0.25]
[1649184069475,0.104469,45913.0,45908.0,0.00046733]
[1649184069625,0.05446792,45912.0,45908.0,0.00046733]
[1649184069922,0.10894447,45911.0,45908.0,0.00046733]
[1649184070073,0.15894447,45911.0,45908.0,0.00046733]
[1649184070474,0.15894447,45911.0,45907.0,0.24736955]
[1649184070619,0.15894447,45911.0,45907.0,0.24783668]
[1649184070620,0.21341147,45911.0,45907.0,0.24783668]
[1649184071362,0.104467,45911.0,45907.0,0.24783668]
[1649184071712,0.104467,45911.0,45907.0,0.24736955]
[1649184071814,0.1,45914.0,45907.0,0.24783668]
[1649184072213,0.05,45914.0,45907.0,0.24783668]
[1649184072415,0.05,45913.0,45907.0,0.24783668]
[1649184072516,0.05,45918.0,45907.0,0.24783668]
[1649184072823,0.01089,45920.0,45914.0,0.24794576]
[1649184072923,0.323486,45919.0,45914.0,0.24794576]
[1649184073018,0.00061012,45915.0,45914.0,0.24794576]
[1649184073572,0.00061012,45915.0,45914.0,0.57143176]
[1649184073771,0.00061012,45915.0,45914.0,0.91905459]
[1649184074021,0.00061012,45915.0,45914.0,0.57143176]
[1649184074422,0.00061012,45915.0,45914.0,0.82143176]
[1649184074770,0.1879,45922.0,45914.0,0.82143176]
[1649184074870,0.2379,45922.0,45914.0,0.82143176]
[1649184074970,0.00060994,45917.0,45915.0,0.318426]
[1649184075070,0.2879,45922.0,45916.0,0.18744627]
[1649184075171,0.1,45922.0,45917.0,0.323465]
[1649184075382,0.05,45922.0,45917.0,0.6337723]
[1649184075473,0.05,45922.0,45921.0,0.26190395]
[1649184075570,0.20343031,45927.0,45921.0,0.26190395]
[1649184075571,0.05,45926.0,45921.0,0.26190395]
[1649184075871,0.05,45926.0,45916.0,0.18744627]
[1649184076272,0.05,45926.0,45917.0,0.05]
[1649184076673,0.05,45926.0,45919.0,0.00048966]
[1649184076974,0.05,45926.0,45919.0,0.26416161]
[1649184077223,0.05,45926.0,45919.0,0.25048966]
[1649184077323,0.23308087,45923.0,45919.0,0.25048966]
[1649184077524,0.28308087,45923.0,45919.0,0.25048966]
[1649184077625,0.28308087,45923.0,45919.0,0.25]
[1649184077825,0.28308087,45923.0,45919.0,0.25047227]
[1649184078031,0.054451,45922.0,45919.0,0.00047227]
[1649184078170,0.054451,45922.0,45919.0,0.00038169]
[1649184078870,0.054451,45922.0,45915.0,0.26089]
[1649184079424,0.054451,45922.0,45915.0,0.49587665]
[1649184079525,0.054451,45922.0,45915.0,0.26089]
[1649184079723,0.054451,45922.0,45916.0,0.323486]
[1649184079922,0.054451,45922.0,45917.0,0.323486]
[1649184080024,0.054451,45922.0,45916.0,0.323486]
[1649184080125,0.054451,45922.0,45917.0,0.318397]
[1649184080221,0.054451,45922.0,45916.0,0.323486]
[1649184081176,0.054451,45922.0,45915.0,0.26089]
[1649184081285,0.054451,45922.0,45916.0,0.323486]
[1649184082179,0.054451,45922.0,45915.0,0.01089]
[1649184082379,0.054458,45921.0,45915.0,0.01089]
[1649184082480,0.108912,45920.0,45915.0,0.01089]
[1649184082681,0.108912,45920.0,45916.0,0.00052353]
[1649184083235,0.05445511,45919.0,45916.0,0.00052353]
[1649184083433,0.10891011,45919.0,45916.0,0.00052353]
[1649184083635,0.10891011,45919.0,45913.0,0.01089]
[1649184083734,0.10891011,45919.0,45914.0,0.323486]
[1649184083835,0.10891011,45919.0,45915.0,0.00052354]
[1649184083934,0.163371,45920.0,45919.0,0.21782022]
[1649184084434,0.27228692,45920.0,45919.0,0.21782022]
[1649184084635,0.108912,45920.0,45919.0,0.21782022]
[1649184087217,0.10882138,45920.0,45919.0,0.21782022]
[1649184091817,0.15892024,45921.0,45919.0,0.21782022]
[1649184091917,0.05,45921.0,45919.0,0.21782022]
[1649184092270,0.05445559,45922.0,45919.0,0.21782022]
[1649184092371,0.05,45923.0,45919.0,0.21782022]
[1649184092469,0.01089,45926.0,45919.0,0.21782022]
[1649184093277,0.01089,45926.0,45920.0,0.31774147]
[1649184093520,0.01089,45926.0,45920.0,0.31822757]
[1649184094183,0.24252979,45927.0,45920.0,0.31822757]
[1649184094520,0.24252979,45927.0,45920.0,0.31774147]
[1649184094721,0.24252979,45927.0,45920.0,0.31822844]
[1649184095723,0.24252979,45927.0,45920.0,0.31774147]
[1649184095825,0.24252979,45927.0,45920.0,0.31822844]
[1649184096864,0.24252979,45927.0,45920.0,0.31774147]
[1649184097065,0.24252979,45927.0,45920.0,0.31822844]
[1649184097466,0.1,45927.0,45920.0,0.31822844]
[1649184097565,0.05,45927.0,45920.0,0.31822844]
[1649184097666,0.05,45926.0,45920.0,0.31822844]
[1649184097818,0.154441,45928.0,45920.0,0.31822844]
[1649184098070,0.154441,45928.0,45920.0,0.31774147]
[1649184098268,0.154441,45928.0,45920.0,0.31822838]
[1649184098566,0.05444624,45926.0,45920.0,0.31822838]
[1649184098869,0.05444624,45926.0,45920.0,0.00048691]
[1649184098969,0.10444624,45926.0,45920.0,0.00048691]
[1649184099323,0.10444624,45926.0,45919.0,0.21782022]
[1649184099521,0.10444624,45926.0,45920.0,0.0004869]
[1649184100524,0.10444624,45926.0,45919.0,0.21782022]
[1649184100665,0.21334424,45926.0,45920.0,0.0004869]
[1649184101667,0.21334424,45926.0,45919.0,0.46782022]
[1649184101867,0.21334424,45926.0,45920.0,0.00048691]
[1649184102918,0.21334424,45926.0,45919.0,0.46782022]
[1649184103120,0.21334424,45926.0,45920.0,0.00048691]
[1649184103676,0.05,45926.0,45920.0,0.00048691]
[1649184103772,0.05,45927.0,45920.0,0.00048691]
[1649184103872,0.24252979,45929.0,45920.0,0.00048691]
[1649184104073,0.19252979,45929.0,45919.0,0.21782022]
[1649184104175,0.19252979,45929.0,45925.0,0.25]
[1649184104272,0.19252979,45929.0,45926.0,0.323486]
[1649184104276,0.05,45929.0,45926.0,0.323486]
[1649184104479,0.2877,45932.0,45925.0,0.67286413]
[1649184104578,0.2877,45932.0,45928.0,0.23553029]
[1649184104681,0.1,45932.0,45925.0,0.67286413]
[1649184104880,0.05,45932.0,45925.0,0.25]